Cogmind - Beta 14 @@@ ROGUE MODE // 2024.08.18 @ 21:09:16 Player: HourglassLad Result: Core destroyed Performance ------------- Evolutions (0) 0 Regions Visited (2) 400 Robots Destroyed (5) 25 Value Destroyed (123) 123 Prototype IDs (2) 40 Alien Tech Used (0) 0 Bonus (0) 0 TOTAL SCORE: 588 Bonus ------- None Cogmind --------- Core Integrity 0/250 Matter 263/300 Energy 39/250 System Corruption 5% Temperature Critical (576) Movement Core (400) Ox7 Location -10/Mines Parts ------- > --- POWER (1) -------- Ion Engine > --- PROPULSION (2) --- (None) > --- UTILITY (2) ------ Medium Storage Unit > --- WEAPON (2) ------- Particle Cannon Particle Cannon > --- INVENTORY (10) --- Light Ion Engine Disposable Heat Sink Core Shielding Shield Generator Welding Torch Peak State ------------ > --- POWER ------------ Ion Engine > --- PROPULSION ------- Wheel Wheel > --- UTILITY ---------- Medium Storage Unit Shield Generator > --- WEAPON ----------- Particle Cannon Particle Cannon > --- INVENTORY -------- Light Ion Engine Disposable Heat Sink Core Shielding Shield Generator Particle Cannon Particle Cannon Welding Torch [Rating: 11] Favorites ----------- Power Ion Engine Engine Ion Engine Propulsion Wheel Wheel Wheel Utility Medium Storage Unit Device Seismic Detector Storage Medium Storage Unit Weapon Particle Cannon Energy Gun Medium Laser Energy Cannon Particle Cannon Launcher Grenade Launcher Build | -11 -10 -10 ------- Run | Yrd Mat Min Slots Evolved . | . . . Power . | . . . Propulsion . | . . . Utility . | . . . Weapon . | . . . Parts Attached 19 | 7 6 6 Power 2 | 1 1 . Engine 2 | 1 1 . Core . | . . . Reactor . | . . . Propulsion 4 | 2 1 1 Treads . | . . . Leg . | . . . Wheel 4 | 2 1 1 Hover . | . . . Flight . | . . . Utility 4 | 2 1 1 Device 2 | 1 . 1 Storage 2 | 1 1 . Processor . | . . . Hackware . | . . . Protection . | . . . Artifact . | . . . Weapon 9 | 2 3 4 Energy Gun 3 | 2 1 . Energy Cannon 5 | . 2 3 Ballistic Gun . | . . . Ballistic Cannon . | . . . Launcher 1 | . . 1 Special Weapon . | . . . Impact Weapon . | . . . Slashing Weapon . | . . . Piercing Weapon . | . . . Special Melee Weapon . | . . . Unidentified Prototypes . | . . . Parts Lost 8 | . . 8 Power . | . . . Propulsion 3 | . . 3 Utility 2 | . . 2 Weapon 3 | . . 3 Highest Loss Streak 8 | . . 8 To Critical Strikes . | . . . Average Slot Usage (%) 96 | . 99 80 Engine 14 | . 14 14 Wheel 26 | . 28 17 Device 12 | . 14 8 Storage 14 | . 14 14 Energy Gun 13 | . 16 . Energy Cannon 13 | . 11 23 Peak Build Rating 11 | 7 10 11 Average Rating 8 | 5 8 8 On Entrance 5 | . 7 10 Naked Turns . | . . . Heaviest Build 25 | 15 24 25 Greatest Support 20 | 20 20 20 Greatest Overweight (x) 7 | . 1 7 Average Overweight (x) . | . . 1 Largest Inventory Capacity 10 | 8 10 10 Average Capacity 9 | 6 9 10 Most Carried 10 | 5 10 10 Average Carried 7 | 3 8 7 Final Capacity 10 | 8 10 10 Final Carried 10 | 5 10 5 Class Distribution -------------------- 100% | Mutant Dominant Class ---------------- Mutant | -10/Materials Mutant | -10/Mines Resources | -11 -10 -10 ----------- Run | Yrd Mat Min Matter Collected 350 | 177 153 20 Remotely . | . . . Salvage Created 285 | 26 124 135 Parts 13 | 4 9 . Haulers Intercepted . | . . . Recyclers Shooed . | . . . Parts Field Recycled . | . . . Retrieved Matter . | . . . Parts Self-Destructed . | . . . Prevented . | . . . Kills | -11 -10 -10 ------- Run | Yrd Mat Min Combat Hostiles Destroyed 16 | . 3 13 Guns 2 | . 2 . Cannons 10 | . . 10 AOE 3 | . . 3 Classes Destroyed 4 | 1 2 1 Worker 1 | . 1 . Tunneler 1 | 1 . . Grunt 3 | . 3 . Assembled 13 | . . 13 Best Kill Streak 13 | 1 2 13 Combat Bots Only 13 | . 2 13 Max Kills in Single Turn 2 | 1 1 2 Gunslinging . | . . . Exploded 2 | . . 2 Melee . | . . . Uniques/NPCs Destroyed . | . . . Combat | -11 -10 -10 -------- Run | Yrd Mat Min Hostile Shots Fired 90 | . 20 70 Missed 25 | . 7 18 Damage Taken 962 | . 164 798 Core 278 | . 49 229 Absorbed by Shields 57 | . . 57 Core Remaining (%) 100 | 100 . . Volleys Fired 36 | 1 13 22 Largest 2 | 2 2 2 Hottest 136 | 90 136 136 Shots Fired 60 | 2 26 32 Gun 26 | 2 24 . Cannon 31 | . 2 29 Launcher 3 | . . 3 Special . | . . . Kinetic . | . . . Thermal 51 | 1 21 29 Explosive 3 | . . 3 Electromagnetic 6 | 1 5 . Robot Hit Streak 10 | 1 10 6 Robot Miss Streak 3 | 1 3 3 Penetration Max . | . . . Secondary Targets . | . . . Shots Hit Robots 36 | 1 18 17 Core Hits 25 | 1 7 17 Critical Kills . | . . . Critical Parts Destroyed . | . . . Critical Strikes . | . . . Melee Attacks . | . . . Impact . | . . . Slashing . | . . . Piercing . | . . . Sneak Attacks . | . . . Combat Hostiles . | . . . Follow-up Attacks . | . . . Damage Inflicted 942 | 13 276 653 Guns 249 | 13 236 . Cannons 386 | . 40 346 Explosions 307 | . . 307 Melee . | . . . Ramming . | . . . Kinetic . | . . . Thermal 592 | 13 233 346 Explosive 307 | . . 307 Electromagnetic 43 | . 43 . Impact . | . . . Slashing . | . . . Piercing . | . . . Highest Corruption 5 | . . 5 Average Corruption 5 | . . 5 Corruption Purged . | . . . Corruption Blocked . | . . . Effects 3 | . . 3 Matter Fused 1 | . . 1 Misfires 1 | . . 1 Weapon Failures 1 | . . 1 Overload Shots . | . . . Overflow Damage 35 | . . 35 Projectiles 16 | . . 16 Explosions 19 | . . 19 Melee . | . . . Knockbacks . | . . . Impact . | . . . Kinetic . | . . . Secondary . | . . . Self-Inflicted Damage 23 | . . 23 Shots 1 | . . 1 Rammed . | . . . Targets Rammed . | . . . Kicked . | . . . Crushed . | . . . Highest Temperature 596 | 30 406 596 Average Temperature 189 | 17 162 224 Received Heat Transfer 241 | . 93 148 Effects 15 | . 2 13 Shutdowns 4 | . 1 3 Energy Bleed 1 | . . 1 Interference 1 | . . 1 Short Circuit 1 | . . 1 Damage (minor) 3 | . 1 2 Damage (major) 4 | . . 4 Damage (core) 1 | . . 1 Siege Activations . | . . . Robots Corrupted . | . . . Combat Hostiles . | . . . Parts Fried . | . . . Impact Corruptions . | . . . Robots Melted 1 | . 1 . Combat Hostiles 1 | . 1 . Parts Melted 2 | . 2 . Heat Transferred 1258 | 37 592 629 Parts Sabotaged . | . . . Parts Stolen . | . . . Parts Stripped . | . . . Power Chain Reactions . | . . . Alert | -11 -10 -10 ------- Run | Yrd Mat Min Peak Influence 178 | 5 178 17 Initial 9 | . 3 9 Average 59 | 1 79 4 Maximum Alert Level . | . . . Low Security (%) 100 | 100 100 100 Level 1 . | . . . Level 2 . | . . . Level 3 . | . . . Level 4 . | . . . Level 5 . | . . . High Security . | . . . Max Security . | . . . Squads Dispatched 1 | . 1 . Investigation . | . . . Extermination . | . . . Reinforcement 1 | . 1 . Assault . | . . . Garrison . | . . . Intercept . | . . . Searches Triggered . | . . . Construction Impeded . | . . . Haulers Reinforced . | . . . Active Scanning Responses . | . . . Cargo Convoy Interrupts . | . . . Stealth | -11 -10 -10 --------- Run | Yrd Mat Min Distress Signals 1 | . 1 . Communications Jammed . | . . . Distress Signals . | . . . Times Spotted 25 | . 10 15 Peak Tracking Total 14 | . 3 14 Tactical Retreats 3 | . 1 2 Traps | -11 -10 -10 ------- Run | Yrd Mat Min Traps Triggered . | . . . Indirectly . | . . . Trap Hack Attempts . | . . . Triggered . | . . . Disarmed . | . . . Reprogrammed . | . . . Reused . | . . . Traps Extracted . | . . . Installed . | . . . Triggered . | . . . Machines | -11 -10 -10 ---------- Run | Yrd Mat Min Machines Disabled . | . . . Max in Single Turn . | . . . Machines Repaired . | . . . Machines Dismantled . | . . . Machines Sabotaged . | . . . Overloaded Fab Kills . | . . . Hacking | -11 -10 -10 --------- Run | Yrd Mat Min Machines Accessed 2 | . 2 . Terminals 2 | . 2 . Fabricators . | . . . Repair Stations . | . . . Recycling Units . | . . . Scanalyzers . | . . . Garrison Access . | . . . Total Hacks 5 | . 5 . Successful 3 | . 3 . Failed 2 | . 2 . Catastrophic . | . . . Database Lockouts . | . . . Manual . | . . . Terminals 5 | . 5 . Fabricators . | . . . Repair Stations . | . . . Recycling Units . | . . . Scanalyzers . | . . . Garrison Access . | . . . Terminal Hacks 3 | . 3 . Robot Analysis 1 | . 1 . Prototype ID Bank 1 | . 1 . Alert Level 1 | . 1 . Fabricator Hacks . | . . . Repair Station Hacks . | . . . Recycling Unit Hacks . | . . . Scanalyzer . | . . . Garrison Access Hacks . | . . . Unauthorized Hacks . | . . . Terminals . | . . . Fabricators . | . . . Repair Stations . | . . . Recycling Units . | . . . Scanalyzers . | . . . Garrison Access . | . . . Data Cores Recovered . | . . . Used . | . . . Hacking Detections 1 | . 1 . Full Trace Events . | . . . Feedback Events . | . . . Feedback Blocked . | . . . Robot Schematics Acquired . | . . . Robots Built . | . . . Authchips . | . . . Time . | . . . Total Robot Build Rating . | . . . Part Schematics Acquired . | . . . Parts Built . | . . . Authchips . | . . . Time . | . . . Total Part Build Rating . | . . . Parts Repaired . | . . . Time . | . . . Parts Recycled . | . . . Recycled Matter . | . . . Retrieved Matter . | . . . Retrieved Components . | . . . Parts Scanalyzed . | . . . Part Schematics Acquired . | . . . Parts Damaged . | . . . Bothacking | -11 -10 -10 ------------ Run | Yrd Mat Min Used RIF Installer . | . . . Robots Hacked . | . . . Non-combat . | . . . Combat . | . . . Robot Hacks Applied . | . . . Relay Couplers Released . | . . . Fabnet Peak Effective % . | . . . Robots Rewired . | . . . Allies Hacked . | . . . Hacks Repelled . | . . . Allies | -11 -10 -10 -------- Run | Yrd Mat Min Total Allies . | . . . Largest Group . | . . . Highest-Rated Group . | . . . Highest-Rated Ally . | . . . Total Orders . | . . . Ally Attacks . | . . . Total Damage . | . . . Kills . | . . . Allies Corrupted . | . . . Allies Melted . | . . . Intel | -11 -10 -10 ------- Run | Yrd Mat Min Robot Analysis Total 1 | . 1 . Derelict Logs Recovered . | . . . Drone Launches . | . . . Drone Recoveries . | . . . Exploration | -11 -10 -10 ------------- Run | Yrd Mat Min Turns Passed 709 | 74 524 111 Spaces Moved 450 | 72 340 38 Core 7 | 6 . 1 Treads . | . . . Legs . | . . . Wheels 443 | 66 340 37 Hover . | . . . Flight . | . . . Fastest Speed 50 | 50 80 95 Average Speed 88 | 77 89 105 Slowest Speed 400 | 80 95 400 Overloaded Moves . | . . . Propulsion Burnouts . | . . . Robots Hopped . | . . . Cave-ins Triggered . | . . . Exploration Rate (%) 18 | 4 37 13 Regions Visited 2 Branch Regions 1 Pre-discovered Areas . | . . . Known Exits Taken . | . . . Unknown Exits Taken 2 | 1 1 . Scrap Searched 1 | . . 1 Spaces Dug . | . . . Terrain Destroyed 18 | . . 18 Melee . | . . . Projectile . | . . . AOE 18 | . . 18 Terrain Rammed . | . . . Walls Destroyed . | . . . Machines Disabled . | . . . Actions | -11 -10 -10 --------- Run | Yrd Mat Min Total 701 | 84 536 81 Wait 175 | . 162 13 Move 448 | 71 339 38 Hop . | . . . Pick Up 13 | 5 7 1 Fast Attach 9 | 7 2 . Attach 5 | . . 5 Detach 2 | . 2 . Swap 5 | . 4 1 Drop 8 | . 7 1 Fire 36 | 1 13 22 Melee . | . . . Ram . | . . . Kick . | . . . Crush . | . . . Escape Stasis . | . . . Rewire . | . . . Trap . | . . . Miscellaneous . | . . . Route ------- -11/Scrapyard -10/Materials -10/Mines History --------- Turn | Location | Event 13 | -11/Scrapyard | Discovered new exit (range 16) 75 | -11/Scrapyard | Entered Materials 314 | -10/Materials | Build established: Mutant 568 | -10/Materials | Discovered new exit (range 15) 599 | -10/Materials | Entered Mines 610 | -10/Mines | Assembled infested the area 615 | -10/Mines | Assisted by a Guerilla fighting off Assembled 645 | -10/Mines | Core integrity fell below 50% 693 | -10/Mines | Core integrity fell below 20% 711 | -10/Mines | Core destroyed Last Messages --------------- 00697_ Overheating: Energy bleed (-23). 00697_ as-88265 destroyed. 00699_ as-09089 destroyed. 00700_ Overheating: Ion Engine damaged (-9). 00700_ Overheating: Particle Cannon damaged (-80). 00702_ Power failure, Ion Engine shutdown. 00703_ Particle Cannon broken. 00703_ Overheating: Short circuit. 00707_ Overheating: Broken Particle Cannon damaged (-6). 00707_ Overheating: Ion Engine damaged (-7). 00708_ as-75906 destroyed. 00709_ Overheating: System interference. 00709_ Particle Cannon temporarily disabled. 00710_ Overheating: Particle Cannon damaged (-62). 00710_ Acquired 20 matter. 00711_ Power failure, Ion Engine shutdown. 00711_ Overheating: Core damaged (-40). Map ----- +----------------------------------------------------+ | ????????????????????????????? | | ??????????????? ????????????? | | ????????????? #??????????? | | ???????????? #?????????? | | ???????????? ? ??????? | | ??????????? ??????? | | ??????????? #?????? | | ?????????? ?????? | | ?????????# ????? | | ?????#### ????? | | ????## ????? | | ????# ????? | | ????# #???????????????? | | ????## ####????????????????? | | ????## ###?????????? ??????? | | ????# ###### %%= #??????? | | ????# ![ %! % !! ??? | | ????# *%% % ??? | | ????# % # = ##?????? | | ???## % ### % ##??????? | | ???# ##??# * #???????? | | ???#%###????#### #???????? | | ???# #??????????? #???????? | | ???#%#???????????? #???????? | | ??##%######????????##???????? | | ??# @ #?????????????????? | | ??# """ #?????????????????? | | ??# """ #?????????????????? | | ??# """ #?????????????????? | | ??# #?????????????????? | | ??# #?????????????????? | | ??# #?????????????????? | | ??#########?????????????????? | | ????????????????????????????? | | | | | | | | | | | | | | | | | | | | | | | | | | | | | | | | | +----------------------------------------------------+ Best States ------------- Heat Dissipation 25 Energy Generation 10 Energy Capacity 250 Matter Stores 300 Matter Capacity 300 Sight Range 16 Terrain Scan Density 10 Evasion (%) 44 Item Schematics ----------------- None Robot Schematics ------------------ None Fabricated ------------ Nothing Alien Tech Used ----------------- None Achievements -------------- None Challenges ------------ None Game ------ Seed CoolingThermoelectricGuard Manual? 0 Play Time 00:11:59 Cumulative 25.4 hours Start 2024.08.18 @ 20:59:18 End 2024.08.18 @ 21:09:16 Sessions 1 Manual Loads 0 Difficulty Rogue Special Mode None Game No. 49 Rogue 49 Adventurer 0 Explorer 0 Win Type - Total 0 Types 0/0/0/0/0/0/0/0/0 Lore% 11 Gallery% 29 Achievement% 21 Wizard Run 0 Options --------- Layout 1 ASCII 0 Keyboard 1 Movement Numpad Keybinds 0 Fullscreen 1 Font 24/Smallcaps Map View 50x35 Zoom Use 0% Tactical HUD 1 Map Filters NONE Filters NONE Steam 1 RUN: ed26a875-bad4-4d1c-bbf4-577a251b86ac